[Event "Titled Tuesday Blitz February 21 Early 2023"]
[White "Ozkan, Ervin"]
[Black "Melikhov, Evgeny V."]
[WhiteFideId "6306004"]
[BlackFideId "4122046"]
[WhiteElo "2179"]
[BlackElo "2269"]
[Result "1-0"]
[Round "02"]
[TimeControl "180+2"]
[Date "2023.02.21"]
[WhiteClock "0:00:10"]
[BlackClock "0:00:01"]

1. d4 {[%clk 0:03:00]}  Nf6 {[%clk 0:02:58]} 2. Bf4 {[%clk 0:03:01]}  d5 {[%clk 0:02:58]} 3. e3 {[%clk 0:03:01]}  c5 {[%clk 0:02:58]} 4. c3 {[%clk 0:03:01]}  Nc6 {[%clk 0:02:57]} 5. Nd2 {[%clk 0:03:01]}  cxd4 {[%clk 0:02:57]} 6. exd4 {[%clk 0:03:00]}  Bf5 {[%clk 0:02:57]} 7. Qb3 {[%clk 0:03:00]}  Qc8 {[%clk 0:02:52]} 8. Ngf3 {[%clk 0:03:00]}  e6 {[%clk 0:02:52]} 9. h3 {[%clk 0:03:00]}  Be7 {[%clk 0:02:51]} 10. Be2 {[%clk 0:03:01]}  O-O {[%clk 0:02:50]} 11. O-O {[%clk 0:03:02]}  h6 {[%clk 0:02:50]} 12. Rac1 {[%clk 0:02:54]}  a6 {[%clk 0:02:42]} 13. a4 {[%clk 0:02:53]}  Na5 {[%clk 0:02:40]} 14. Qa2 {[%clk 0:02:43]}  b5 {[%clk 0:02:30]} 15. axb5 {[%clk 0:02:30]}  axb5 {[%clk 0:02:29]} 16. Bxb5 {[%clk 0:02:26]}  Qb7 {[%clk 0:02:22]} 17. Qa4 {[%clk 0:02:03]}  Nc4 {[%clk 0:02:20]} 18. Qb3 {[%clk 0:02:03]}  Na5 {[%clk 0:01:51]} 19. Qa4 {[%clk 0:02:03]}  Nc4 {[%clk 0:01:50]} 20. Bc6 {[%clk 0:01:30]}  Rxa4 {[%clk 0:01:47]} 21. Bxb7 {[%clk 0:01:30]}  Nxb2 {[%clk 0:01:45]} 22. Bc6 {[%clk 0:01:25]}  Ra6 {[%clk 0:01:34]} 23. Bb5 {[%clk 0:01:21]}  Rb6 {[%clk 0:01:34]} 24. Be2 {[%clk 0:01:09]}  Nd3 {[%clk 0:01:32]} 25. Bxd3 {[%clk 0:01:08]}  Bxd3 {[%clk 0:01:32]} 26. Rfe1 {[%clk 0:01:09]}  Ne4 {[%clk 0:01:22]} 27. Nxe4 {[%clk 0:01:08]}  Bxe4 {[%clk 0:01:22]} 28. Ne5 {[%clk 0:01:05]}  Ra8 {[%clk 0:01:16]} 29. c4 {[%clk 0:01:01]}  f6 {[%clk 0:00:53]} 30. c5 {[%clk 0:00:51]}  Rba6 {[%clk 0:00:44]} 31. Nd7 {[%clk 0:00:46]}  Rc8 {[%clk 0:00:33]} 32. f3 {[%clk 0:00:37]}  Bd3 {[%clk 0:00:20]} 33. Nb6 {[%clk 0:00:30]}  Rc6 {[%clk 0:00:19]} 34. Nxd5 {[%clk 0:00:25]}  exd5 {[%clk 0:00:15]} 35. Rxe7 {[%clk 0:00:26]}  Ra4 {[%clk 0:00:13]} 36. Be3 {[%clk 0:00:20]}  Kf8 {[%clk 0:00:11]} 37. Rb7 {[%clk 0:00:19]}  Ba6 {[%clk 0:00:10]} 38. Rb2 {[%clk 0:00:12]}  Re6 {[%clk 0:00:09]} 39. Kf2 {[%clk 0:00:12]}  Ra3 {[%clk 0:00:08]} 40. Re1 {[%clk 0:00:12]}  Ke7 {[%clk 0:00:06]} 41. Rc2 {[%clk 0:00:11]}  Kd7 {[%clk 0:00:06]} 42. c6+ {[%clk 0:00:11]}  Rxc6 {[%clk 0:00:05]} 43. Rb2 {[%clk 0:00:10]}  Rcc3 {[%clk 0:00:05]} 44. Bd2 {[%clk 0:00:09]}  Rd3 {[%clk 0:00:04]} 45. Bb4 {[%clk 0:00:10]}  Rab3 {[%clk 0:00:03]} 46. Rxb3 {[%clk 0:00:09]}  Rxb3 {[%clk 0:00:02]} 47. Bc5 {[%clk 0:00:10]}  Bc4 {[%clk 0:00:02]} 48. Re7+ {[%clk 0:00:10]}  Kc6 {[%clk 0:00:02]} 49. Rxg7 {[%clk 0:00:11]}  Rb2+ {[%clk 0:00:03]} 50. Kg3 {[%clk 0:00:11]}  Kb5 {[%clk 0:00:02]} 51. Rg6 {[%clk 0:00:11]}  Bf1 {[%clk 0:00:02]} 52. Kh2 {[%clk 0:00:11]}  Kc4 {[%clk 0:00:02]} 53. h4 {[%clk 0:00:11]}  Kd3 {[%clk 0:00:02]} 54. h5 {[%clk 0:00:12]}  Rc2 {[%clk 0:00:01]} 55. Kg1 {[%clk 0:00:10]} 1-0


[Site "https://www.chess.com"]

[Event "Titled Tuesday Blitz February 21 Early 2023"]
[White "Averjanov, Alexey"]
[Black "Krzywda, Andrzej"]
[WhiteFideId "14109867"]
[BlackFideId "1114565"]
[WhiteElo "2399"]
[BlackElo "2223"]
[Result "1-0"]
[Round "02"]
[TimeControl "180+2"]
[Date "2023.02.21"]
[WhiteClock "0:00:53"]
[BlackClock "0:00:08"]

1. d4 {[%clk 0:03:00]}  d5 {[%clk 0:02:59]} 2. c4 {[%clk 0:02:59]}  c6 {[%clk 0:03:00]} 3. e3 {[%clk 0:02:58]}  Nf6 {[%clk 0:02:58]} 4. Bd3 {[%clk 0:02:57]}  dxc4 {[%clk 0:02:47]} 5. Bxc4 {[%clk 0:02:57]}  b5 {[%clk 0:02:43]} 6. Bd3 {[%clk 0:02:55]}  a6 {[%clk 0:02:42]} 7. Nf3 {[%clk 0:02:54]}  e6 {[%clk 0:02:40]} 8. O-O {[%clk 0:02:52]}  c5 {[%clk 0:02:37]} 9. b3 {[%clk 0:02:51]}  Bb7 {[%clk 0:02:36]} 10. Qe2 {[%clk 0:02:46]}  Nbd7 {[%clk 0:02:34]} 11. Rd1 {[%clk 0:02:45]}  Qb6 {[%clk 0:02:34]} 12. Bb2 {[%clk 0:02:44]}  Rc8 {[%clk 0:02:31]} 13. Nbd2 {[%clk 0:02:42]}  Be7 {[%clk 0:02:28]} 14. a4 {[%clk 0:02:40]}  Bc6 {[%clk 0:02:21]} 15. axb5 {[%clk 0:02:39]}  axb5 {[%clk 0:02:22]} 16. e4 {[%clk 0:02:37]}  Qb7 {[%clk 0:01:55]} 17. e5 {[%clk 0:02:35]}  Nd5 {[%clk 0:01:48]} 18. Be4 {[%clk 0:02:34]}  Nf4 {[%clk 0:01:41]} 19. Qe3 {[%clk 0:02:33]}  Nd5 {[%clk 0:01:34]} 20. Qe1 {[%clk 0:02:32]}  O-O {[%clk 0:01:30]} 21. Rac1 {[%clk 0:02:30]}  c4 {[%clk 0:01:16]} 22. bxc4 {[%clk 0:02:24]}  bxc4 {[%clk 0:01:17]} 23. Ba1 {[%clk 0:02:24]}  c3 {[%clk 0:01:14]} 24. Nf1 {[%clk 0:02:20]}  Ba3 {[%clk 0:01:07]} 25. Rb1 {[%clk 0:02:16]}  Qa8 {[%clk 0:01:06]} 26. Ng3 {[%clk 0:02:06]}  Nf4 {[%clk 0:00:57]} 27. Bxc3 {[%clk 0:02:00]}  Bxe4 {[%clk 0:00:52]} 28. Nxe4 {[%clk 0:02:00]}  Qd5 {[%clk 0:00:35]} 29. Bb4 {[%clk 0:01:54]}  Bxb4 {[%clk 0:00:35]} 30. Rxb4 {[%clk 0:01:55]}  Rc2 {[%clk 0:00:32]} 31. Qe3 {[%clk 0:01:47]}  Re2 {[%clk 0:00:27]} 32. Qxf4 {[%clk 0:01:46]}  Rxe4 {[%clk 0:00:28]} 33. Qd2 {[%clk 0:01:41]}  Rc8 {[%clk 0:00:22]} 34. h3 {[%clk 0:01:40]}  h6 {[%clk 0:00:16]} 35. Qd3 {[%clk 0:01:36]}  Nf8 {[%clk 0:00:15]} 36. g3 {[%clk 0:01:33]}  Ng6 {[%clk 0:00:14]} 37. Nd2 {[%clk 0:01:33]}  Rxe5 {[%clk 0:00:13]} 38. Nf3 {[%clk 0:01:27]}  Rf5 {[%clk 0:00:13]} 39. Rb3 {[%clk 0:01:22]}  Rd8 {[%clk 0:00:13]} 40. Kh2 {[%clk 0:01:20]}  Qd7 {[%clk 0:00:07]} 41. Qe4 {[%clk 0:01:17]}  Rd5 {[%clk 0:00:07]} 42. Rdb1 {[%clk 0:01:14]}  Kh7 {[%clk 0:00:07]} 43. h4 {[%clk 0:01:14]}  Kg8 {[%clk 0:00:06]} 44. Rb7 {[%clk 0:01:12]}  Qe8 {[%clk 0:00:06]} 45. Ra7 {[%clk 0:01:06]}  Ne7 {[%clk 0:00:06]} 46. Rbb7 {[%clk 0:01:06]}  R5d7 {[%clk 0:00:07]} 47. Ne5 {[%clk 0:01:05]}  Rxb7 {[%clk 0:00:07]} 48. Qxb7 {[%clk 0:01:06]}  Qf8 {[%clk 0:00:06]} 49. Qxe7 {[%clk 0:01:05]}  Qxe7 {[%clk 0:00:06]} 50. Rxe7 {[%clk 0:01:06]}  Rxd4 {[%clk 0:00:07]} 51. Nxf7 {[%clk 0:01:00]}  Rd2 {[%clk 0:00:06]} 52. Kg2 {[%clk 0:00:59]}  Kf8 {[%clk 0:00:06]} 53. Ra7 {[%clk 0:00:59]}  Re2 {[%clk 0:00:06]} 54. Nd6 {[%clk 0:00:59]}  Kg8 {[%clk 0:00:06]} 55. Nc4 {[%clk 0:00:58]}  Kh7 {[%clk 0:00:06]} 56. Ne3 {[%clk 0:00:58]}  Rb2 {[%clk 0:00:06]} 57. Ra6 {[%clk 0:00:57]}  e5 {[%clk 0:00:06]} 58. Ra5 {[%clk 0:00:57]}  e4 {[%clk 0:00:06]} 59. Ra4 {[%clk 0:00:57]}  h5 {[%clk 0:00:06]} 60. Rxe4 {[%clk 0:00:56]}  g6 {[%clk 0:00:06]} 61. Nd5 {[%clk 0:00:55]}  Kh6 {[%clk 0:00:06]} 62. Nf4 {[%clk 0:00:55]}  g5 {[%clk 0:00:06]} 63. Re6+ {[%clk 0:00:54]}  Kg7 {[%clk 0:00:06]} 64. hxg5 {[%clk 0:00:54]}  h4 {[%clk 0:00:07]} 65. gxh4 {[%clk 0:00:54]}  Kf7 {[%clk 0:00:07]} 66. Rf6+ {[%clk 0:00:53]}  Kg7 {[%clk 0:00:08]} 67. h5 {[%clk 0:00:53]}  Kh7 {[%clk 0:00:08]} 68. h6 {[%clk 0:00:53]}  Kg8 {[%clk 0:00:07]} 69. g6 {[%clk 0:00:52]}  Rb8 {[%clk 0:00:06]} 70. Ne6 {[%clk 0:00:51]}  Kh8 {[%clk 0:00:05]} 71. Rf8+ {[%clk 0:00:50]}  Rxf8 {[%clk 0:00:05]} 72. Nxf8 {[%clk 0:00:51]}  Kg8 {[%clk 0:00:06]} 73. Ne6 {[%clk 0:00:51]}  Kh8 {[%clk 0:00:06]} 74. f4 {[%clk 0:00:51]}  Kg8 {[%clk 0:00:06]} 75. f5 {[%clk 0:00:52]}  Kh8 {[%clk 0:00:07]} 76. f6 {[%clk 0:00:52]}  Kg8 {[%clk 0:00:08]} 77. f7+ {[%clk 0:00:52]}  Kh8 {[%clk 0:00:08]} 78. f8=Q# {[%clk 0:00:53]} 1-0


[Site "https://www.chess.com"]

[Event "Titled Tuesday Blitz February 21 Early 2023"]
[White "Skliarov, Viktor"]
[Black "Lucassen, Mickey"]
[WhiteFideId "14106736"]
[BlackFideId "12919110"]
[WhiteElo "2383"]
[BlackElo "2023"]
[Result "1-0"]
[Round "02"]
[TimeControl "180+2"]
[Date "2023.02.21"]
[WhiteClock "0:01:35"]
[BlackClock "0:00:40"]

1. e4 {[%clk 0:02:45]}  c5 {[%clk 0:02:59]} 2. Nf3 {[%clk 0:02:44]}  d6 {[%clk 0:02:59]} 3. d4 {[%clk 0:02:44]}  cxd4 {[%clk 0:03:00]} 4. Qxd4 {[%clk 0:02:45]}  Nc6 {[%clk 0:02:59]} 5. Bb5 {[%clk 0:02:44]}  Bd7 {[%clk 0:03:00]} 6. Bxc6 {[%clk 0:02:45]}  Bxc6 {[%clk 0:03:01]} 7. Nc3 {[%clk 0:02:45]}  Nf6 {[%clk 0:03:01]} 8. Bg5 {[%clk 0:02:46]}  e6 {[%clk 0:03:01]} 9. O-O-O {[%clk 0:02:46]}  Be7 {[%clk 0:03:00]} 10. Rhe1 {[%clk 0:02:46]}  O-O {[%clk 0:03:01]} 11. Kb1 {[%clk 0:02:47]}  Qc7 {[%clk 0:02:57]} 12. Qd2 {[%clk 0:02:47]}  b5 {[%clk 0:02:54]} 13. Nd4 {[%clk 0:02:47]}  b4 {[%clk 0:02:40]} 14. Ncb5 {[%clk 0:02:46]}  Bxb5 {[%clk 0:01:55]} 15. Nxb5 {[%clk 0:02:47]}  Qc5 {[%clk 0:01:55]} 16. Nxd6 {[%clk 0:02:42]}  Bxd6 {[%clk 0:01:49]} 17. Bxf6 {[%clk 0:02:42]}  gxf6 {[%clk 0:01:47]} 18. Qxd6 {[%clk 0:02:41]}  Qxf2 {[%clk 0:01:47]} 19. Rf1 {[%clk 0:02:25]}  Qh4 {[%clk 0:01:38]} 20. Qxb4 {[%clk 0:01:45]}  Rab8 {[%clk 0:01:25]} 21. Qc3 {[%clk 0:01:44]}  Qxe4 {[%clk 0:01:04]} 22. Qxf6 {[%clk 0:01:38]}  Rbc8 {[%clk 0:00:40]} 23. Rd3 {[%clk 0:01:35]} 1-0


[Site "https://www.chess.com"]

[Event "Titled Tuesday Blitz February 21 Early 2023"]
[White "Novikova, Galina"]
[Black "Ambartsumova, Karina"]
[WhiteFideId "4157095"]
[BlackFideId "4166299"]
[WhiteElo "2073"]
[BlackElo "2393"]
[Result "0-1"]
[Round "02"]
[TimeControl "180+2"]
[Date "2023.02.21"]
[WhiteClock "0:01:28"]
[BlackClock "0:01:22"]

1. e4 {[%clk 0:03:00]}  e5 {[%clk 0:02:59]} 2. Nf3 {[%clk 0:03:00]}  d5 {[%clk 0:02:59]} 3. Nxe5 {[%clk 0:02:59]}  Bd6 {[%clk 0:02:59]} 4. d4 {[%clk 0:03:00]}  dxe4 {[%clk 0:02:59]} 5. Nc4 {[%clk 0:03:00]}  Nf6 {[%clk 0:02:59]} 6. Nc3 {[%clk 0:02:59]}  O-O {[%clk 0:02:59]} 7. Bg5 {[%clk 0:02:56]}  Bf5 {[%clk 0:02:58]} 8. Ne3 {[%clk 0:02:55]}  Bg6 {[%clk 0:02:57]} 9. Qd2 {[%clk 0:02:56]}  Be7 {[%clk 0:02:52]} 10. O-O-O {[%clk 0:02:54]}  Nc6 {[%clk 0:02:53]} 11. Be2 {[%clk 0:02:47]}  a6 {[%clk 0:02:44]} 12. h4 {[%clk 0:02:46]}  h6 {[%clk 0:02:43]} 13. h5 {[%clk 0:02:35]}  Bh7 {[%clk 0:02:42]} 14. Bf4 {[%clk 0:02:35]}  b5 {[%clk 0:02:40]} 15. g4 {[%clk 0:02:27]}  b4 {[%clk 0:02:39]} 16. Na4 {[%clk 0:02:17]}  Nd5 {[%clk 0:02:40]} 17. Nxd5 {[%clk 0:02:12]}  Qxd5 {[%clk 0:02:40]} 18. Kb1 {[%clk 0:02:13]}  Bf6 {[%clk 0:02:36]} 19. Be3 {[%clk 0:02:04]}  Rfd8 {[%clk 0:02:27]} 20. c4 {[%clk 0:02:04]}  bxc3 {[%clk 0:02:24]} 21. Nxc3 {[%clk 0:02:04]}  Qa5 {[%clk 0:02:24]} 22. g5 {[%clk 0:01:50]}  Bxg5 {[%clk 0:02:18]} 23. Rhg1 {[%clk 0:01:46]}  Nxd4 {[%clk 0:02:09]} 24. Bxg5 {[%clk 0:01:44]}  e3+ {[%clk 0:02:08]} 25. Qd3 {[%clk 0:01:44]}  Bxd3+ {[%clk 0:02:07]} 26. Bxd3 {[%clk 0:01:45]}  hxg5 {[%clk 0:02:05]} 27. fxe3 {[%clk 0:01:44]}  Nf3 {[%clk 0:01:55]} 28. Rg3 {[%clk 0:01:41]}  Ne1 {[%clk 0:01:29]} 29. Rxe1 {[%clk 0:01:29]}  Rxd3 {[%clk 0:01:28]} 30. Reg1 {[%clk 0:01:30]}  f6 {[%clk 0:01:26]} 31. h6 {[%clk 0:01:29]}  gxh6 {[%clk 0:01:26]} 32. Rf3 {[%clk 0:01:29]}  Rxc3 {[%clk 0:01:22]} 33. bxc3 {[%clk 0:01:28]}  Qxc3 {[%clk 0:01:22]} 0-1


[Site "https://www.chess.com"]

[Event "Titled Tuesday Blitz February 21 Early 2023"]
[White "Petrova, Irina"]
[Black "Fiorito, Francisco"]
[WhiteFideId "14124122"]
[BlackFideId "180165"]
[WhiteElo "2108"]
[BlackElo "2305"]
[Result "0-1"]
[Round "02"]
[TimeControl "180+2"]
[Date "2023.02.21"]
[WhiteClock "0:00:03"]
[BlackClock "0:00:19"]

1. e4 {[%clk 0:03:00]}  c5 {[%clk 0:02:58]} 2. Nf3 {[%clk 0:03:00]}  Nc6 {[%clk 0:02:59]} 3. Bb5 {[%clk 0:03:00]}  g6 {[%clk 0:02:56]} 4. Bxc6 {[%clk 0:02:59]}  dxc6 {[%clk 0:02:57]} 5. d3 {[%clk 0:02:59]}  Bg7 {[%clk 0:02:58]} 6. Nc3 {[%clk 0:02:59]}  Qc7 {[%clk 0:02:58]} 7. Be3 {[%clk 0:02:40]}  b6 {[%clk 0:02:58]} 8. O-O {[%clk 0:02:39]}  e5 {[%clk 0:02:56]} 9. a3 {[%clk 0:02:38]}  h6 {[%clk 0:02:56]} 10. b4 {[%clk 0:02:34]}  cxb4 {[%clk 0:02:56]} 11. axb4 {[%clk 0:02:35]}  Ne7 {[%clk 0:02:54]} 12. Na4 {[%clk 0:02:32]}  Rb8 {[%clk 0:02:51]} 13. Nb2 {[%clk 0:02:15]}  Be6 {[%clk 0:02:45]} 14. Ra3 {[%clk 0:02:06]}  O-O {[%clk 0:02:25]} 15. Qa1 {[%clk 0:02:05]}  Nc8 {[%clk 0:02:25]} 16. Nc4 {[%clk 0:02:00]}  f6 {[%clk 0:01:55]} 17. Nfd2 {[%clk 0:01:52]}  Qf7 {[%clk 0:01:53]} 18. f4 {[%clk 0:01:37]}  exf4 {[%clk 0:01:49]} 19. Bxf4 {[%clk 0:01:38]}  Rb7 {[%clk 0:01:49]} 20. Nd6 {[%clk 0:01:34]}  Nxd6 {[%clk 0:01:49]} 21. Bxd6 {[%clk 0:01:35]}  Rd8 {[%clk 0:01:49]} 22. Bg3 {[%clk 0:01:32]}  Qe7 {[%clk 0:01:44]} 23. Qc3 {[%clk 0:01:29]}  Bg4 {[%clk 0:01:18]} 24. Rfa1 {[%clk 0:01:26]}  f5 {[%clk 0:01:14]} 25. e5 {[%clk 0:01:26]}  g5 {[%clk 0:01:05]} 26. Nc4 {[%clk 0:01:19]}  f4 {[%clk 0:01:04]} 27. Bf2 {[%clk 0:01:18]}  Be6 {[%clk 0:00:46]} 28. Nd6 {[%clk 0:01:11]}  Qxd6 {[%clk 0:00:44]} 29. exd6 {[%clk 0:01:09]}  Bxc3 {[%clk 0:00:45]} 30. Rxc3 {[%clk 0:01:10]}  Rxd6 {[%clk 0:00:45]} 31. Rca3 {[%clk 0:01:06]}  Rdd7 {[%clk 0:00:45]} 32. Kf1 {[%clk 0:00:43]}  Kf7 {[%clk 0:00:45]} 33. g3 {[%clk 0:00:38]}  Bh3+ {[%clk 0:00:42]} 34. Kg1 {[%clk 0:00:38]}  fxg3 {[%clk 0:00:31]} 35. Bxg3 {[%clk 0:00:39]}  Re7 {[%clk 0:00:30]} 36. d4 {[%clk 0:00:33]}  Be6 {[%clk 0:00:28]} 37. Be5 {[%clk 0:00:31]}  Kg6 {[%clk 0:00:27]} 38. Rf1 {[%clk 0:00:28]}  Rf7 {[%clk 0:00:26]} 39. Raf3 {[%clk 0:00:27]}  Rxf3 {[%clk 0:00:25]} 40. Rxf3 {[%clk 0:00:28]}  Bf5 {[%clk 0:00:24]} 41. Rc3 {[%clk 0:00:26]}  Be4 {[%clk 0:00:24]} 42. Kf2 {[%clk 0:00:21]}  Bd5 {[%clk 0:00:23]} 43. Kg3 {[%clk 0:00:20]}  h5 {[%clk 0:00:23]} 44. h4 {[%clk 0:00:18]}  g4 {[%clk 0:00:23]} 45. Ra3 {[%clk 0:00:16]}  Bc4 {[%clk 0:00:20]} 46. Ra1 {[%clk 0:00:12]}  Rf7 {[%clk 0:00:20]} 47. Bf4 {[%clk 0:00:12]}  a6 {[%clk 0:00:19]} 48. Re1 {[%clk 0:00:11]}  Bd5 {[%clk 0:00:18]} 49. Re5 {[%clk 0:00:11]}  Rf5 {[%clk 0:00:18]} 50. Rxf5 {[%clk 0:00:10]}  Kxf5 {[%clk 0:00:18]} 51. Bc7 {[%clk 0:00:11]}  b5 {[%clk 0:00:18]} 52. c3 {[%clk 0:00:11]}  Ke4 {[%clk 0:00:19]} 53. Bd6 {[%clk 0:00:09]}  Kd3 {[%clk 0:00:19]} 54. Bc5 {[%clk 0:00:09]}  Kxc3 {[%clk 0:00:20]} 55. Kf4 {[%clk 0:00:09]}  Bf3 {[%clk 0:00:19]} 56. Ke3 {[%clk 0:00:09]}  Kb3 {[%clk 0:00:17]} 57. Kf4 {[%clk 0:00:09]}  Ka4 {[%clk 0:00:17]} 58. Ke3 {[%clk 0:00:08]}  a5 {[%clk 0:00:17]} 59. bxa5 {[%clk 0:00:08]}  Kxa5 {[%clk 0:00:18]} 60. Kd2 {[%clk 0:00:06]}  b4 {[%clk 0:00:18]} 61. Kc2 {[%clk 0:00:06]}  Kb5 {[%clk 0:00:18]} 62. Bd6 {[%clk 0:00:06]}  Kc4 {[%clk 0:00:18]} 63. Be5 {[%clk 0:00:06]}  Be4+ {[%clk 0:00:18]} 64. Kb2 {[%clk 0:00:06]}  Bd5 {[%clk 0:00:17]} 65. Kc2 {[%clk 0:00:05]}  b3+ {[%clk 0:00:17]} 66. Kb2 {[%clk 0:00:05]}  Kd3 {[%clk 0:00:17]} 67. Kc1 {[%clk 0:00:04]}  Ke2 {[%clk 0:00:18]} 68. Kb2 {[%clk 0:00:03]}  Kf2 {[%clk 0:00:18]} 69. Kc3 {[%clk 0:00:03]}  g3 {[%clk 0:00:19]} 0-1


[Site "https://www.chess.com"]

[Event "Titled Tuesday Blitz February 21 Early 2023"]
[White "Todev, Simeon"]
[Black "Fries-Nielsen, Jens Ove"]
[WhiteFideId "2925133"]
[BlackFideId "1400142"]
[WhiteElo "2033"]
[BlackElo "2377"]
[Result "1-0"]
[Round "02"]
[TimeControl "180+2"]
[Date "2023.02.21"]
[WhiteClock "0:01:04"]
[BlackClock "0:01:24"]

1. e4 {[%clk 0:02:56]}  c5 {[%clk 0:02:58]} 2. Nf3 {[%clk 0:02:52]}  Nc6 {[%clk 0:02:57]} 3. c3 {[%clk 0:02:51]}  e6 {[%clk 0:02:56]} 4. d4 {[%clk 0:02:50]}  d5 {[%clk 0:02:57]} 5. e5 {[%clk 0:02:44]}  Qb6 {[%clk 0:01:42]} 6. Bd3 {[%clk 0:02:35]}  Nh6 {[%clk 0:01:41]} 7. O-O {[%clk 0:02:30]}  cxd4 {[%clk 0:01:40]} 8. cxd4 {[%clk 0:02:30]}  Nf5 {[%clk 0:01:41]} 9. Bxf5 {[%clk 0:02:21]}  exf5 {[%clk 0:01:41]} 10. Nc3 {[%clk 0:02:20]}  Be6 {[%clk 0:01:42]} 11. Be3 {[%clk 0:02:15]}  Be7 {[%clk 0:01:42]} 12. Qd3 {[%clk 0:02:13]}  h6 {[%clk 0:01:42]} 13. b3 {[%clk 0:02:11]}  g5 {[%clk 0:01:41]} 14. Na4 {[%clk 0:02:01]}  Qc7 {[%clk 0:01:40]} 15. Rac1 {[%clk 0:01:56]}  f4 {[%clk 0:01:40]} 16. Bd2 {[%clk 0:01:50]}  Qd7 {[%clk 0:01:40]} 17. Nc5 {[%clk 0:01:45]}  Bxc5 {[%clk 0:01:40]} 18. Rxc5 {[%clk 0:01:46]}  g4 {[%clk 0:01:33]} 19. Nh4 {[%clk 0:01:43]}  f3 {[%clk 0:01:34]} 20. g3 {[%clk 0:01:36]}  O-O-O {[%clk 0:01:31]} 21. Rfc1 {[%clk 0:01:34]}  Kb8 {[%clk 0:01:31]} 22. b4 {[%clk 0:01:34]}  Rc8 {[%clk 0:01:31]} 23. b5 {[%clk 0:01:33]}  Ne7 {[%clk 0:01:31]} 24. Bb4 {[%clk 0:01:32]}  Nf5 {[%clk 0:01:31]} 25. Nxf5 {[%clk 0:01:19]}  Bxf5 {[%clk 0:01:31]} 26. Qa3 {[%clk 0:01:18]}  b6 {[%clk 0:01:26]} 27. Rc6 {[%clk 0:01:09]}  Be6 {[%clk 0:01:25]} 28. Bd6+ {[%clk 0:01:06]}  Ka8 {[%clk 0:01:24]} 29. Rc7 {[%clk 0:01:04]} 1-0


[Site "https://www.chess.com"]

[Event "Titled Tuesday Blitz February 21 Early 2023"]
[White "Melian, Juan Sebastian"]
[Black "Lorenzo De La Riva, Lazaro"]
[WhiteFideId "3706575"]
[BlackFideId "2268809"]
[WhiteElo "2293"]
[BlackElo "2404"]
[Result "1-0"]
[Round "02"]
[TimeControl "180+2"]
[Date "2023.02.21"]
[WhiteClock "0:00:14"]
[BlackClock "0:00:15"]

1. d4 {[%clk 0:02:59]}  Nf6 {[%clk 0:02:57]} 2. c4 {[%clk 0:02:59]}  c5 {[%clk 0:02:58]} 3. d5 {[%clk 0:02:59]}  b5 {[%clk 0:02:58]} 4. Qc2 {[%clk 0:02:59]}  b4 {[%clk 0:02:57]} 5. e4 {[%clk 0:02:59]}  d6 {[%clk 0:02:55]} 6. f4 {[%clk 0:02:59]}  g6 {[%clk 0:02:54]} 7. Nf3 {[%clk 0:03:00]}  Bg7 {[%clk 0:02:54]} 8. Bd3 {[%clk 0:02:59]}  O-O {[%clk 0:02:53]} 9. O-O {[%clk 0:02:59]}  e6 {[%clk 0:02:50]} 10. Nbd2 {[%clk 0:02:52]}  a5 {[%clk 0:02:44]} 11. Re1 {[%clk 0:02:50]}  a4 {[%clk 0:02:28]} 12. dxe6 {[%clk 0:02:25]}  Bxe6 {[%clk 0:02:18]} 13. e5 {[%clk 0:02:22]}  Nh5 {[%clk 0:02:13]} 14. Ne4 {[%clk 0:02:19]}  dxe5 {[%clk 0:02:05]} 15. fxe5 {[%clk 0:02:15]}  Nd7 {[%clk 0:01:47]} 16. Bg5 {[%clk 0:02:10]}  Qc7 {[%clk 0:01:44]} 17. Be7 {[%clk 0:01:37]}  Nxe5 {[%clk 0:01:32]} 18. Bxf8 {[%clk 0:01:25]}  Nxf3+ {[%clk 0:01:31]} 19. gxf3 {[%clk 0:01:26]}  Kxf8 {[%clk 0:01:25]} 20. Ng5 {[%clk 0:01:19]}  Bd4+ {[%clk 0:00:59]} 21. Kh1 {[%clk 0:01:18]}  Bd7 {[%clk 0:00:56]} 22. Be4 {[%clk 0:01:16]}  Rd8 {[%clk 0:00:47]} 23. Bd5 {[%clk 0:01:14]}  Bc6 {[%clk 0:00:37]} 24. Qe4 {[%clk 0:00:29]}  Bxd5 {[%clk 0:00:28]} 25. cxd5 {[%clk 0:00:29]}  h6 {[%clk 0:00:26]} 26. Nh3 {[%clk 0:00:10]}  a3 {[%clk 0:00:25]} 27. Rad1 {[%clk 0:00:05]}  axb2 {[%clk 0:00:24]} 28. Rxd4 {[%clk 0:00:03]}  cxd4 {[%clk 0:00:21]} 29. Qxd4 {[%clk 0:00:04]}  Qc3 {[%clk 0:00:21]} 30. Qd1 {[%clk 0:00:02]}  Nf6 {[%clk 0:00:15]} 31. Nf2 {[%clk 0:00:01]}  Rxd5 {[%clk 0:00:14]} 32. Qe2 {[%clk 0:00:02]}  Re5 {[%clk 0:00:11]} 33. Ne4 {[%clk 0:00:02]}  Nxe4 {[%clk 0:00:11]} 34. fxe4 {[%clk 0:00:03]}  Qd4 {[%clk 0:00:09]} 35. Qf3 {[%clk 0:00:03]}  Kg7 {[%clk 0:00:07]} 36. Rf1 {[%clk 0:00:03]}  Qd7 {[%clk 0:00:06]} 37. Qf6+ {[%clk 0:00:03]}  Kh7 {[%clk 0:00:03]} 38. Qxe5 {[%clk 0:00:04]}  Qe6 {[%clk 0:00:03]} 39. Qxe6 {[%clk 0:00:04]}  fxe6 {[%clk 0:00:03]} 40. Rb1 {[%clk 0:00:05]}  Kg8 {[%clk 0:00:04]} 41. Rxb2 {[%clk 0:00:06]}  Kg7 {[%clk 0:00:05]} 42. Rxb4 {[%clk 0:00:06]}  Kf7 {[%clk 0:00:06]} 43. Rb5 {[%clk 0:00:07]}  Kf6 {[%clk 0:00:07]} 44. Kg2 {[%clk 0:00:08]}  Ke7 {[%clk 0:00:07]} 45. Kf3 {[%clk 0:00:09]}  Kf6 {[%clk 0:00:08]} 46. a4 {[%clk 0:00:09]}  Kf7 {[%clk 0:00:09]} 47. a5 {[%clk 0:00:10]}  Kf6 {[%clk 0:00:10]} 48. a6 {[%clk 0:00:11]}  Kf7 {[%clk 0:00:11]} 49. a7 {[%clk 0:00:12]}  Kf6 {[%clk 0:00:11]} 50. a8=Q {[%clk 0:00:13]}  e5 {[%clk 0:00:11]} 51. Qc6+ {[%clk 0:00:12]}  Kg5 {[%clk 0:00:12]} 52. Rb7 {[%clk 0:00:13]}  Kh5 {[%clk 0:00:13]} 53. Rg7 {[%clk 0:00:13]}  g5 {[%clk 0:00:14]} 54. Qg6+ {[%clk 0:00:13]}  Kh4 {[%clk 0:00:15]} 55. Qxh6# {[%clk 0:00:14]} 1-0


[Site "https://www.chess.com"]